bitfinex/quotes_ETHUSD_20250904
["timestamp","ask_amount","ask_price","bid_price","bid_amount"]
[1756975279943,19.83833658,4385.6,4385.5,0.004]
[1756975280540,19.38203658,4385.6,4385.5,0.004]
[1756975280752,18.89443658,4385.6,4385.5,0.004]
[1756975281670,18.59183658,4385.6,4385.5,0.004]
[1756975282867,3.5901,4385.6,4385.5,1.235]
[1756975283053,3.5901,4385.6,4385.5,1.3585]
[1756975284858,3.1144,4385.6,4385.5,1.3585]
[1756975285975,3.1144,4385.6,4385.5,3.6387417]
[1756975286356,3.1144,4385.6,4385.5,1.3585]
[1756975289046,3.1144,4385.6,4385.5,3.6387417]
[1756975289244,3.1144,4385.6,4385.5,1.3585]
[1756975289655,3.1144,4385.6,4385.5,3.6387417]
[1756975291071,3.1144,4385.6,4385.5,1.3585]
[1756975291263,3.1144,4385.6,4385.5,3.6387417]
[1756975292195,3.1144,4385.6,4385.5,1.3585]
[1756975292344,3.1144,4385.6,4385.5,3.6387417]
[1756975292996,0.001,4385.8,4385.7,2.28013772]
[1756975293282,0.001,4385.8,4385.7,5.63054794]
[1756975293578,0.001,4385.8,4385.7,7.91068566]
[1756975295380,0.0002,4385.8,4385.7,7.91068566]
[1756975300060,0.0002,4385.8,4385.7,7.43458566]
[1756975300455,0.0002,4385.8,4385.7,6.98588566]
[1756975300651,0.0002,4385.8,4385.7,4.40384794]
[1756975300857,0.2944,4385.8,4385.7,4.40384794]
[1756975301074,0.0002,4385.8,4385.7,6.68398566]
[1756975301277,0.0002,4385.8,4385.7,6.98588566]
[1756975305390,0.0002,4385.8,4385.7,4.40384794]
[1756975305691,0.0002,4385.8,4385.7,6.68398566]
[1756975305893,0.0002,4385.8,4385.7,6.98588566]
[1756975313295,0.0002,4385.8,4385.7,4.40384794]
[1756975314099,0.0002,4385.8,4385.7,6.68398566]
[1756975314800,0.0002,4385.8,4385.7,7.43458566]
[1756975314975,0.0002,4385.8,4385.7,6.98588566]
[1756975320080,0.0002,4385.8,4385.7,7.42008566]
[1756975320509,0.0002,4385.8,4385.7,6.98588566]
[1756975320714,0.113,4386.0,4385.8,2.28006223]
[1756975320885,0.113,4386.0,4385.9,6.08803374]
[1756975323075,0.4207,4386.0,4385.9,6.08803374]
[1756975323306,1.3451,4386.0,4385.9,3.808]
[1756975323508,1.3451,4386.0,4385.6,1.757]
[1756975323805,2.28013772,4385.7,4385.6,0.004]
[1756975324006,2.39453772,4385.7,4385.6,0.004]
[1756975324311,6.62663772,4385.7,4385.6,0.004]
[1756975324902,15.53598459,4385.7,4385.6,0.004]
[1756975326210,4.3465,4385.7,4385.6,0.004]
[1756975326710,6.62663772,4385.7,4385.6,0.004]
[1756975328305,4.3465,4385.7,4385.6,0.004]
[1756975328788,6.62663772,4385.7,4385.6,0.004]
[1756975332020,10.43463772,4385.7,4385.6,0.004]
[1756975346138,10.43383772,4385.7,4385.6,0.004]
[1756975351741,9.50943772,4385.7,4385.6,0.004]
[1756975354252,10.42323772,4385.7,4385.6,0.004]
[1756975356420,11.21523772,4385.7,4385.6,0.004]
[1756975363025,22.09563992,4385.7,4385.6,0.004]
[1756975367283,21.18183992,4385.7,4385.6,0.004]
[1756975368559,21.63493992,4385.7,4385.6,0.004]
[1756975368748,22.09563992,4385.7,4385.6,0.004]
[1756975370979,22.09663992,4385.7,4385.6,0.004]
[1756975371568,22.09583992,4385.7,4385.6,0.004]
[1756975380863,21.18203992,4385.7,4385.6,0.004]
[1756975382193,9.99393772,4385.7,4385.6,0.3189]
[1756975382400,20.87433992,4385.7,4385.6,0.3189]
[1756975382696,20.87433992,4385.7,4385.6,0.004]
[1756975383863,21.18223992,4385.7,4385.6,0.004]
[1756975385988,22.11463992,4385.7,4385.6,0.004]
[1756975389886,21.18223992,4385.7,4385.6,0.004]
[1756975390192,20.87433992,4385.7,4385.6,0.004]
[1756975391368,21.64153992,4385.7,4385.6,0.004]
[1756975391569,19.67238788,4385.7,4385.6,0.004]
[1756975394576,19.21308788,4385.7,4385.6,0.004]
[1756975395104,18.90518788,4385.7,4385.6,0.004]
[1756975397086,18.90438788,4385.7,4385.6,0.004]
[1756975398976,18.90438788,4385.7,4385.6,0.3189]
[1756975399495,6.18513772,4385.7,4385.6,1.2329]
[1756975399833,18.90038788,4385.7,4385.6,1.2329]
[1756975402327,18.90038788,4385.7,4385.6,0.7491]
[1756975403413,18.90038788,4385.7,4385.6,0.3189]
[1756975405101,18.90038788,4385.7,4385.6,0.004]
[1756975405307,6.07218971,4385.6,4385.5,0.004]
[1756975405509,6.82602059,4385.6,4385.5,0.004]
[1756975405709,7.59322059,4385.6,4385.5,0.004]
[1756975405919,7.68466662,4385.6,4385.5,0.004]
[1756975411420,7.40393574,4385.6,4385.5,0.004]
[1756975411932,6.47153574,4385.6,4385.5,0.004]
[1756975413026,6.91843574,4385.6,4385.5,0.004]
[1756975413252,7.40989466,4385.6,4385.5,0.004]
[1756975414315,6.96299466,4385.6,4385.5,0.004]
[1756975414831,6.65509466,4385.6,4385.5,0.004]
[1756975417209,6.65509466,4385.6,4385.5,0.3183]
[1756975417405,10.45809466,4385.6,4385.5,0.3183]
[1756975418808,10.45809466,4385.6,4385.5,0.004]
[1756975419015,2.2803457,4385.3,4385.2,0.004]
[1756975419249,27.51070494,4385.3,4385.2,0.004]
[1756975419544,18.59945478,4385.3,4385.2,0.004]
[1756975419750,18.69090164,4385.3,4385.2,0.004]
[1756975420251,27.6021518,4385.3,4385.2,0.004]
[1756975421347,3.0,4385.2,4385.1,0.004]
[1756975421546,3.0,4385.2,4384.8,0.025]
[1756975421547,14.19180387,4384.9,4384.8,0.025]
[1756975421750,23.70891295,4384.9,4384.8,0.025]
[1756975421916,23.70891295,4384.9,4384.8,0.3393]
[1756975422627,23.70811295,4384.9,4384.8,0.3393]
[1756975426640,23.70811295,4384.9,4384.8,0.3433]
[1756975427430,23.70811295,4384.9,4384.8,0.029]
[1756975427748,23.70811295,4384.9,4384.8,0.3433]
[1756975428759,14.79766279,4384.9,4384.8,0.7796]
[1756975428919,23.70891295,4384.9,4384.8,0.7796]
[1756975429519,23.70891295,4384.9,4384.8,0.3433]
[1756975430554,23.99721295,4384.9,4384.8,0.029]
[1756975430757,24.89971295,4384.9,4384.8,0.029]
[1756975433343,24.45281295,4384.9,4384.8,0.029]
[1756975433542,14.19206395,4384.4,4384.3,0.004]
[1756975433746,14.79792287,4384.4,4384.3,0.004]
[1756975433929,14.79792287,4384.4,4384.3,0.3183]
[1756975435153,14.79792287,4384.4,4384.3,0.7546]
[1756975435456,14.79792287,4384.4,4384.3,1.2194]
[1756975435756,14.79792287,4384.4,4384.3,0.7546]
[1756975438163,14.79792287,4384.4,4384.3,0.3183]
[1756975446945,14.79792287,4384.4,4384.3,0.7772]
[1756975447133,14.79792287,4384.4,4384.3,0.3183]
[1756975447334,14.79792287,4384.4,4384.3,0.004]
[1756975447559,14.79792287,4384.4,4384.3,0.3127]
[1756975447934,14.79712287,4384.4,4384.3,0.3127]
[1756975449674,14.79712287,4384.4,4384.3,0.004]
[1756975449877,15.11162287,4384.4,4384.3,0.21788563]
[1756975451670,14.79712287,4384.4,4384.3,0.21788563]
[1756975452346,14.79712287,4384.4,4384.3,0.52658563]
[1756975452749,14.30566395,4384.4,4384.3,0.52658563]
[1756975453461,16.28216556,4384.4,4384.3,0.52658563]
[1756975453779,16.77506056,4384.4,4384.3,0.52658563]
[1756975454483,16.77506056,4384.4,4384.3,0.52663778]
[1756975455081,16.77506056,4384.4,4384.3,0.3127]
[1756975455283,16.77506056,4384.4,4384.3,0.52663778]
[1756975455493,16.77506056,4384.4,4384.3,0.52664811]
[1756975455779,17.54406056,4384.4,4384.3,0.21794811]
[1756975456149,18.00496056,4384.4,4384.3,0.21794811]
[1756975461888,17.08956056,4384.4,4384.3,0.21794811]
[1756975463479,17.09056056,4384.4,4384.3,0.21794811]
[1756975464079,17.54506056,4384.4,4384.3,0.21794811]
[1756975464286,18.00596056,4384.4,4384.3,0.21794811]
[1756975465483,17.55146056,4384.4,4384.3,0.21794811]
[1756975465666,16.77606056,4384.4,4384.3,0.21794811]
[1756975467290,17.09056056,4384.4,4384.3,0.21794811]
[1756975469691,18.00596056,4384.4,4384.3,0.21794811]
[1756975473295,18.00516056,4384.4,4384.3,0.21794811]
[1756975478302,17.08976056,4384.4,4384.3,0.21794811]
[1756975478770,16.77526056,4384.4,4384.3,0.21794811]
[1756975479399,16.77526056,4384.4,4384.3,0.2951]
[1756975481503,16.77526056,4384.4,4384.3,0.004]
[1756975481996,18.02866056,4384.4,4384.3,0.004]
[1756975482199,18.02866056,4384.4,4383.9,0.004]
[1756975482200,22.61866056,4384.4,4383.9,0.004]
[1756975482387,3.0,4383.2,4382.9,0.4846]
[1756975482596,13.88775177,4383.0,4382.9,0.4846]
[1756975482791,14.38106447,4383.0,4382.9,1.2079]
[1756975483505,15.06711982,4383.0,4382.9,1.2079]
[1756975485187,15.06711982,4383.0,4382.9,0.2911]
[1756975486078,15.06711982,4383.0,4382.9,0.7233]
[1756975487506,17.34866214,4383.0,4382.9,0.2911]
[1756975488295,5.28159437,4382.9,4382.8,1.779]
[1756975488607,5.77490707,4382.9,4382.8,1.779]
[1756975488804,5.77490707,4382.9,4382.8,2.0701]
[1756975490505,0.4933127,4382.9,4382.8,3.43634845]
[1756975495586,3.0,4383.6,4382.8,5.71799488]
[1756975495796,0.60649808,4383.5,4382.9,0.9168]
[1756975496001,0.68599103,4383.2,4383.0,4.2302]
[1756975496196,0.68599103,4383.2,4383.1,2.21415556]
[1756975496401,1.17809038,4383.2,4383.1,6.01215556]
[1756975498689,1.17729038,4383.2,4383.1,6.01215556]
[1756975500506,0.68519103,4383.2,4383.1,8.29364582]
[1756975500713,0.68519103,4383.2,4383.1,6.01215556]
[1756975502321,0.68519103,4383.2,4383.1,5.52755556]
[1756975503895,0.68519103,4383.2,4383.1,5.09535556]
[1756975504091,0.68519103,4383.2,4383.1,3.798]
[1756975504092,15.3498428,4383.2,4383.1,3.798]
[1756975504417,16.28258959,4383.2,4383.1,3.798]
[1756975504593,3.0,4383.1,4382.8,1.8974]
[1756975504945,3.0,4383.1,4382.9,3.798]
[1756975505287,0.686013,4383.0,4382.9,3.798]
[1756975505901,1.17837333,4383.0,4382.9,3.798]
[1756975507198,1.17837333,4383.0,4382.8,1.783]
[1756975507429,3.4405,4382.9,4382.8,1.783]
[1756975507596,4.2174,4382.9,4382.8,5.58]
[1756975508426,1.70992841,4382.9,4382.8,5.58]
[1756975508925,1.24552841,4382.9,4382.8,5.58]
[1756975509117,0.49252841,4382.9,4382.8,5.8781]
[1756975512032,0.80502841,4382.9,4382.8,1.783]
[1756975512220,3.99152278,4382.9,4382.8,1.783]
[1756975512419,3.99152278,4382.9,4382.8,5.58]
[1756975512819,14.38028018,4382.9,4382.8,5.8781]
[1756975513130,14.38028018,4382.9,4382.8,5.58]
[1756975513329,14.69278018,4382.9,4382.8,5.58]
[1756975513537,12.72355493,4382.9,4382.8,5.58]
[1756975514431,12.41105493,4382.9,4382.8,5.58]
[1756975514600,12.41105493,4382.9,4382.8,5.8781]
[1756975514800,12.41105493,4382.9,4382.8,6.66427926]
[1756975515006,3.49252841,4382.9,4382.8,6.66427926]
[1756975515204,12.41105493,4382.9,4382.8,6.66427926]
[1756975519447,12.41105493,4382.9,4382.8,5.8781]
[1756975522442,12.41105493,4382.9,4382.8,5.58]
[1756975522633,13.16405493,4382.9,4382.8,1.783]
[1756975522942,13.62845493,4382.9,4382.8,5.58]
[1756975524237,13.62765493,4382.9,4382.8,5.58]
[1756975526446,13.16325493,4382.9,4382.8,5.58]
[1756975526941,12.72275493,4382.9,4382.8,5.58]
[1756975527552,12.72275493,4382.9,4382.8,1.783]
[1756975527857,12.72275493,4382.9,4382.8,5.58]
[1756975528358,13.16325493,4382.9,4382.8,5.58]
[1756975528756,13.16325493,4382.9,4382.8,1.783]
[1756975528927,13.62765493,4382.9,4382.8,5.58]
[1756975530320,13.16325493,4382.9,4382.8,5.58]
[1756975532359,12.72275493,4382.9,4382.8,5.58]
[1756975533244,13.22175493,4382.9,4382.8,5.58]
[1756975533457,15.9440493,4382.9,4382.8,1.783]
[1756975533627,15.9440493,4382.9,4382.8,5.579]
[1756975535425,15.9440493,4382.9,4382.8,1.783]
[1756975535735,15.9440493,4382.9,4382.8,5.579]
[1756975541255,15.9440493,4382.9,4382.8,0.029]
[1756975541458,15.9440493,4382.9,4382.8,3.825]
[1756975541928,15.9440493,4382.9,4382.8,0.029]
[1756975542128,15.9440493,4382.9,4382.8,3.825]
[1756975543654,15.9440493,4382.9,4382.8,0.029]
[1756975546562,2.28195883,4382.2,4382.1,5.55]
[1756975546763,24.96334028,4382.2,4382.1,5.55]
[1756975546936,24.96334028,4382.2,4382.1,3.796]
[1756975548150,2.28211506,4381.9,4381.8,0.025]
[1756975548348,14.80676999,4381.9,4381.8,0.025]
[1756975549637,14.80596999,4381.9,4381.8,0.025]
[1756975557278,14.80596999,4381.9,4381.8,0.029]
[1756975557777,19.84016999,4381.9,4381.8,0.029]
[1756975559382,10.92164347,4381.9,4381.8,0.029]
[1756975559685,19.84016999,4381.9,4381.8,0.029]
[1756975560578,10.92164347,4381.9,4381.8,0.029]
[1756975565363,5.88744347,4381.9,4381.8,0.3284]
[1756975565567,2.88744347,4381.9,4381.8,0.3284]
[1756975565885,5.88744347,4381.9,4381.8,0.029]
[1756975566086,14.80596999,4381.9,4381.8,0.029]
[1756975566386,18.60196999,4381.9,4381.8,0.029]
[1756975568504,18.60196999,4381.9,4381.8,0.3284]
[1756975570218,14.80596999,4381.9,4381.8,0.3284]
[1756975570421,18.60196999,4381.9,4381.8,0.3284]
[1756975571418,18.60230329,4381.9,4381.8,0.3284]
[1756975572281,18.60230329,4381.9,4381.8,0.029]
[1756975572615,19.86230329,4381.9,4381.8,0.029]
[1756975573001,10.47387677,4381.9,4381.8,0.029]
[1756975573410,10.94377677,4381.9,4381.8,0.029]
[1756975573923,2.28263598,4380.9,4380.8,0.025]
[1756975574214,14.80762421,4380.9,4380.8,0.025]
[1756975574515,14.80762421,4380.9,4380.8,0.3244]
[1756975575213,14.80682421,4380.9,4380.8,0.3244]
[1756975575509,5.88829769,4380.9,4380.8,0.3244]
[1756975576222,6.19919769,4380.9,4380.8,0.025]
[1756975576384,7.14829769,4380.9,4380.8,0.025]
[1756975577400,18.05144179,4380.9,4380.8,0.025]
[1756975580293,2.28315714,4379.9,4379.8,0.025]
[1756975580491,16.6785003,4379.9,4379.8,0.025]
[1756975580904,14.39534316,4379.9,4379.8,0.3244]
[1756975581305,16.18630124,4379.9,4379.8,0.3244]
[1756975582331,6.07325714,4379.9,4379.8,0.025]
[1756975582517,20.78520875,4379.9,4379.8,0.025]
[1756975584428,21.25510875,4379.9,4379.8,0.025]
[1756975584832,20.78520875,4379.9,4379.8,0.025]
[1756975585395,20.47430875,4379.9,4379.8,0.025]
[1756975585827,16.67830875,4379.9,4379.8,0.025]
[1756975586216,20.47430875,4379.9,4379.8,0.025]
[1756975587701,20.78520875,4379.9,4379.8,0.025]
[1756975588412,17.93830875,4379.9,4379.8,0.025]
[1756975588613,21.73430875,4379.9,4379.8,0.025]
[1756975589328,21.25510875,4379.9,4379.8,0.025]
[1756975589534,20.78520875,4379.9,4379.8,0.025]
[1756975593623,21.24750875,4379.9,4379.8,0.025]
[1756975593937,21.68840875,4379.9,4379.8,0.025]
[1756975595307,21.68840875,4379.9,4379.8,0.029]
[1756975595606,21.68940875,4379.9,4379.8,0.029]
[1756975600625,21.68940875,4379.9,4378.8,0.025]
[1756975600626,2.28367854,4378.9,4378.8,0.025]
[1756975600947,17.58949102,4378.9,4378.8,0.025]
[1756975601121,18.79999102,4378.9,4378.8,0.025]
[1756975601745,18.35909102,4378.9,4378.8,0.025]
[1756975601945,17.58949102,4378.9,4378.8,0.025]
[1756975602345,18.35909102,4378.9,4378.8,0.025]
[1756975602518,20.58949102,4378.9,4378.8,0.025]
[1756975603036,20.89679102,4378.9,4378.8,0.025]
[1756975603239,20.58949102,4378.9,4378.8,0.025]
[1756975603411,21.33769102,4378.9,4378.8,0.025]
[1756975603812,21.79999102,4378.9,4378.8,0.025]
[1756975604657,3.60566838,4378.9,4378.8,0.3154]
[1756975604821,3.49126838,4378.9,4378.8,0.7914]
[1756975605337,5.77494692,4378.9,4378.8,0.3154]
[1756975605536,5.77494692,4378.9,4378.8,0.7486]
[1756975606043,3.49126838,4378.9,4378.8,0.7486]
[1756975606552,9.57694692,4378.9,4378.8,0.3154]
[1756975607151,5.77494692,4378.9,4378.8,0.3154]
[1756975607367,3.49126838,4378.9,4378.8,0.7486]
[1756975608047,3.49126838,4378.9,4378.8,0.3154]
[1756975608250,5.77494692,4378.9,4378.8,0.3154]
[1756975609728,16.67809102,4378.9,4378.8,0.3154]
[1756975609937,17.88859102,4378.9,4378.8,0.025]
[1756975610846,17.44769102,4378.9,4378.8,0.025]
[1756975611051,17.88859102,4378.9,4378.8,0.025]
[1756975611460,17.44769102,4378.9,4378.8,0.025]
[1756975611616,17.88859102,4378.9,4378.8,0.025]
[1756975612261,16.98539102,4378.9,4378.8,0.025]
[1756975613059,17.42629102,4378.9,4378.8,0.025]
[1756975613919,16.98539102,4378.9,4378.8,0.025]
[1756975614124,16.67809102,4378.9,4378.8,0.025]
[1756975614555,16.67809102,4378.9,4378.8,0.029]
[1756975615323,20.47909102,4378.9,4378.8,0.029]
[1756975618639,7.40566838,4378.9,4378.8,0.3194]
[1756975618845,5.88934692,4378.9,4378.8,0.3194]
[1756975619222,5.88934692,4378.9,4378.8,1.2286]
[1756975619726,5.88934692,4378.9,4378.8,0.7526]
[1756975620342,5.88934692,4378.9,4378.8,0.3194]
[1756975621863,3.60566838,4378.9,4378.8,0.3194]
[1756975622152,3.60566838,4378.9,4378.8,0.7472]
[1756975622570,5.88934692,4378.9,4378.8,0.3194]
[1756975623528,3.60566838,4378.9,4378.8,0.3194]
[1756975624362,3.60566838,4378.9,4378.8,0.7472]
[1756975625565,3.60566838,4378.9,4378.8,1.33272]
[1756975625731,3.49126838,4378.9,4378.8,1.33272]
[1756975625931,3.49046838,4378.9,4378.8,1.33272]
[1756975626663,0.49046838,4378.9,4378.8,3.6164507]
[1756975626965,0.80105677,4379.1,4378.9,2.28364823]
[1756975627159,0.68665677,4379.1,4379.0,0.36163682]
[1756975627365,0.68665677,4379.1,4379.0,1.53763682]
[1756975628049,0.68665677,4379.1,4379.0,0.64663682]
[1756975628249,0.68665677,4379.1,4378.8,0.15132]
[1756975628250,0.99165677,4379.1,4378.8,0.029]
[1756975628450,13.9031441,4378.9,4378.8,0.029]
[1756975629564,16.18682264,4378.9,4378.8,0.029]
[1756975629770,3.0,4378.9,4378.8,0.029]
[1756975631845,3.0,4378.9,4378.8,0.314]
[1756975635450,11.93459295,4378.9,4378.8,0.314]
[1756975636160,14.21827149,4378.9,4378.8,0.314]
[1756975636392,14.21827149,4378.9,4378.8,0.029]
[1756975636777,11.93459295,4378.9,4378.8,0.029]
[1756975636974,15.01507149,4378.9,4378.8,0.029]
[1756975637179,15.48247149,4378.9,4378.8,0.029]
[1756975637699,19.28247149,4378.9,4378.8,0.029]
[1756975638195,19.77545131,4378.9,4378.8,0.029]
[1756975638498,19.30805131,4378.9,4378.8,0.029]
[1756975638701,19.77545131,4378.9,4378.8,0.029]
[1756975638995,16.22757277,4378.9,4378.8,0.029]
[1756975639201,12.42757277,4378.9,4378.8,0.314]
[1756975639577,12.54197277,4378.9,4378.8,0.314]
[1756975643401,3.60737982,4378.9,4378.8,0.314]
[1756975645985,3.60748496,4378.9,4378.8,0.314]
[1756975651491,3.60668496,4378.9,4378.8,0.314]
[1756975653613,3.60768496,4378.9,4378.8,0.314]
[1756975654883,3.49328496,4378.9,4378.8,1.11616865]
[1756975655079,3.49328496,4378.9,4378.8,3.86259935]
[1756975655494,3.49328496,4378.9,4378.8,1.07926865]
[1756975655695,3.49328496,4378.9,4378.8,0.61656865]
[1756975656123,3.49328496,4378.9,4378.8,0.314]
[1756975656282,3.49328496,4378.9,4378.8,0.029]
[1756975656689,12.42787791,4378.9,4378.8,0.029]
[1756975657097,13.23387791,4378.9,4378.8,0.029]
[1756975657417,15.96435645,4378.9,4378.8,0.029]
[1756975658088,16.07875645,4378.9,4378.8,0.029]
[1756975659516,13.79507791,4378.9,4378.8,0.029]
[1756975659812,16.07875645,4378.9,4378.8,0.029]
[1756975660615,15.63195645,4378.9,4378.8,0.029]
[1756975660799,16.07875645,4378.9,4378.8,0.029]
[1756975663609,15.58095645,4378.9,4378.8,0.029]
[1756975663811,15.13415645,4378.9,4378.8,0.029]
[1756975664023,16.07875645,4378.9,4378.8,0.029]
[1756975666828,5.8913635,4378.9,4378.8,0.029]
[1756975667031,12.54227791,4378.9,4378.8,0.3172]
[1756975667212,14.82595645,4378.9,4378.8,0.3172]
[1756975668030,12.54227791,4378.9,4378.8,0.3172]
[1756975669747,3.60768496,4378.9,4378.8,0.3172]
[1756975669906,12.54227791,4378.9,4378.8,0.3172]
[1756975670341,12.54227791,4378.9,4378.8,0.029]
[1756975671241,12.54227791,4378.9,4378.8,0.3172]
[1756975672656,3.49328496,4378.9,4378.8,0.3172]
[1756975672935,12.42787791,4378.9,4378.8,0.3172]
[1756975673150,12.42787791,4378.9,4378.8,0.029]
[1756975675168,12.42787791,4378.9,4378.8,0.3172]
[1756975675769,12.42787791,4378.9,4378.8,0.029]
[1756975676955,3.80068496,4378.9,4378.8,0.029]
[1756975677127,12.73527791,4378.9,4378.8,0.029]
[1756975677653,3.80068496,4378.9,4378.8,0.029]
[1756975678157,3.49248496,4378.9,4378.8,0.029]
[1756975678355,3.49248496,4378.9,4378.8,0.71134]
[1756975678556,3.49248496,4378.9,4378.8,3.4577707]
[1756975678861,3.49248496,4378.9,4378.8,3.9573707]
[1756975679031,3.49248496,4378.9,4378.8,1.67364]
[1756975679557,3.49248496,4378.9,4378.8,0.71134]
[1756975679736,3.49248496,4378.9,4378.8,0.42314]
[1756975682762,3.49248496,4378.9,4378.8,0.72334]
[1756975683479,3.49248496,4378.9,4378.8,3.4581707]
[1756975683966,3.49248496,4378.9,4378.8,4.97244]
[1756975684348,3.49248496,4378.9,4378.8,4.52134]
[1756975685060,3.49248496,4378.9,4378.8,4.22114]
[1756975685241,3.80408496,4378.9,4378.8,4.22114]
[1756975686170,4.25428496,4378.9,4378.8,0.42314]
[1756975686465,4.69558496,4378.9,4378.8,3.827]
[1756975688070,3.80408496,4378.9,4378.8,3.827]
[1756975688633,4.24538496,4378.9,4378.8,3.827]
[1756975688834,4.69558496,4378.9,4378.8,3.827]
[1756975692840,4.24538496,4378.9,4378.8,3.827]
[1756975693050,3.49248496,4378.9,4378.8,4.74972758]
[1756975694168,3.49298769,4378.9,4378.8,4.74972758]
[1756975695770,3.49298769,4378.9,4378.8,5.20082758]
[1756975695971,3.49298769,4378.9,4378.8,7.52585828]
[1756975696170,3.49298769,4378.9,4378.8,7.97695828]
[1756975696560,3.49298769,4378.9,4378.8,7.48455828]
[1756975697474,3.49298769,4378.9,4378.8,4.74972758]
[1756975699240,3.49298769,4378.9,4378.8,7.03345828]
[1756975699657,3.49298769,4378.9,4378.8,4.74972758]
[1756975700059,3.49298769,4378.9,4378.8,0.95172758]
[1756975700286,3.80458769,4378.9,4378.8,0.65152758]
[1756975700483,3.80458769,4378.9,4378.8,3.826]
[1756975701881,3.49298769,4378.9,4378.8,3.826]
[1756975702278,3.49218769,4378.9,4378.8,3.826]
[1756975703578,3.49218769,4378.9,4378.8,0.029]
[1756975703790,4.25398769,4378.9,4378.8,3.826]
[1756975703971,4.69528769,4378.9,4378.8,3.826]
[1756975704176,3.80378769,4378.9,4378.8,3.826]
[1756975704677,4.69528769,4378.9,4378.8,3.826]
[1756975706950,3.49218769,4378.9,4378.8,3.826]
[1756975707146,3.49218769,4378.9,4378.8,4.1262]
[1756975710292,3.49218769,4378.9,4378.8,3.826]
[1756975711376,3.49218769,4378.9,4378.8,0.029]
[1756975711575,3.49218769,4378.9,4378.8,3.826]
[1756975712295,3.79318769,4378.9,4378.8,0.029]
[1756975712496,4.72628769,4378.9,4378.8,3.826]
[1756975712674,3.79318769,4378.9,4378.8,3.826]
[1756975712877,4.24708769,4378.9,4378.8,3.826]
[1756975713196,3.79318769,4378.9,4378.8,3.826]
[1756975713494,17.92120604,4378.9,4378.8,0.029]
[1756975713862,18.03560604,4378.9,4378.8,0.029]
[1756975717266,3.0,4378.8,4378.3,0.004]
[1756975717464,16.30957914,4378.4,4378.3,0.004]
[1756975717768,20.90116683,4378.4,4378.3,0.004]
[1756975718099,21.83426683,4378.4,4378.3,0.004]
[1756975720194,22.62626683,4378.4,4378.3,0.004]
[1756975720428,16.19543999,4377.9,4377.8,0.025]
[1756975720714,20.60542768,4377.9,4377.8,0.025]
[1756975720878,20.90642768,4377.9,4377.8,0.025]
[1756975721079,2.28472206,4376.9,4376.8,0.025]
[1756975721274,20.12036187,4376.9,4376.8,0.025]
[1756975721486,21.35446187,4376.9,4376.8,0.025]
[1756975721686,21.84443568,4376.9,4376.8,0.025]
[1756975721910,19.55971362,4376.9,4376.8,0.025]
[1756975722222,21.84443568,4376.9,4376.8,0.025]
[1756975722390,21.35446187,4376.9,4376.8,0.025]
[1756975722900,21.8440326,4376.9,4376.8,0.025]
[1756975725424,21.35446187,4376.9,4376.8,0.025]
[1756975727756,10.44322206,4376.9,4376.8,0.025]
[1756975727933,21.35446187,4376.9,4376.8,0.025]
[1756975728336,21.35446187,4376.9,4376.8,0.029]
[1756975730132,20.90056187,4376.9,4376.8,0.029]
[1756975730333,21.35446187,4376.9,4376.8,0.029]
[1756975732406,16.61136187,4376.9,4376.8,0.029]
[1756975732607,14.02563981,4376.9,4376.8,0.3335]
[1756975732911,20.11836187,4376.9,4376.8,0.029]
[1756975733340,20.41936187,4376.9,4376.8,0.029]
[1756975733538,17.83363981,4376.9,4376.8,0.029]
[1756975733743,17.83363981,4376.9,4376.8,0.3335]
[1756975734108,6.9224,4376.9,4376.8,0.3335]
[1756975734308,6.9224,4376.9,4376.8,0.029]
[1756975734520,6.9224,4376.9,4376.8,0.3335]
[1756975734736,9.20712206,4376.9,4376.8,0.3335]
[1756975735740,6.9224,4376.9,4376.8,0.3335]
[1756975736440,9.20712206,4376.9,4376.8,0.3335]
[1756975736805,6.9224,4376.9,4376.8,0.3335]
[1756975738420,9.20712206,4376.9,4376.8,0.3335]
[1756975739121,6.9224,4376.9,4376.8,0.3335]
[1756975741641,10.45152206,4376.9,4376.8,0.029]
[1756975742913,10.94062558,4376.9,4376.8,0.029]
[1756975746242,10.94162558,4376.9,4376.8,0.029]
[1756975750831,10.47522558,4376.9,4376.8,0.029]
[1756975751257,9.98932558,4376.9,4376.8,0.029]
[1756975751453,9.69722558,4376.9,4376.8,0.3425]
[1756975752165,10.45572558,4376.9,4376.8,0.029]
[1756975752371,10.94162558,4376.9,4376.8,0.029]
[1756975752669,9.69722558,4376.9,4376.8,0.029]
[1756975752868,4.40850352,4376.9,4376.8,1.2834]
[1756975753057,20.60446539,4376.9,4376.8,0.3425]
[1756975753381,20.60366539,4376.9,4376.8,0.029]
[1756975753539,21.84806539,4376.9,4376.8,0.029]
[1756975754043,21.38166539,4376.9,4376.8,0.029]
[1756975754248,21.84806539,4376.9,4376.8,0.029]
[1756975757558,19.8826582,4376.9,4376.8,0.029]
[1756975759239,28.82849082,4376.9,4376.8,0.029]
[1756975759674,19.8826582,4376.9,4376.8,0.029]
[1756975759872,28.82849082,4376.9,4376.8,0.029]
[1756975760177,2.28498309,4376.4,4376.3,0.004]
[1756975760341,18.14821571,4376.4,4376.3,0.004]
[1756975760541,18.90671571,4376.4,4376.3,0.004]
[1756975760873,19.39261571,4376.4,4376.3,0.004]
[1756975761371,28.33844833,4376.4,4376.3,0.004]
[1756975762178,19.39261571,4376.4,4376.3,0.004]
[1756975762566,27.87204833,4376.4,4376.3,0.004]
[1756975762875,28.33844833,4376.4,4376.3,0.004]
[1756975765558,28.82920123,4376.4,4376.3,0.004]
[1756975766072,28.33844833,4376.4,4376.3,0.004]
[1756975766278,28.82920124,4376.4,4376.3,0.004]
[1756975769291,27.87690124,4376.4,4376.3,0.004]